{"text_format":"3","workbook":"xlsx","n_sheets":1,"sheets":["Έξοδα"],"not_rendered":{"defined_names":1},"read":"whole","date_system":"1900"}

{"sheet":"Έξοδα","index":0,"n_rows":30,"n_cols":6,"rows_kept":30,"merged":[[0,1,0,2],[1,1,1,2]]}
[null,"ΠΡΟΫΠΟΛΟΓΙΣΜΟΣ ΕΞΟΔΩΝ",{"$nulls":3},{"$f":"NOW()","v":"2012-05-30T12:02:58.530"}]
[null,"Επωνυμία εταιρείας"]
[]
[null,"Προσωπικό","Προϋπολογισμός","Πραγματικά","Διαφορά (€)","Διαφορά (%)"]
[null,"Γραφείο",null,null,{"$f":"SUM(Table1[Προϋπολογισμός]-Table1[Πραγματικά])","v":0}]
[null,"Κατάστημα",null,null,{"$f":"SUM(Table1[Προϋπολογισμός]-Table1[Πραγματικά])","v":0},{"$f":"IFERROR(SUM(Table1[Διαφορά (€)]/Table1[Προϋπολογισμός]),\"\")","v":""}]
[null,"Πωλητές",null,null,{"$f":"SUM(Table1[Προϋπολογισμός]-Table1[Πραγματικά])","v":0},{"$f":"IFERROR(SUM(Table1[Διαφορά (€)]/Table1[Προϋπολογισμός]),\"\")","v":""}]
[null,"Other",null,null,{"$f":"SUM(Table1[Προϋπολογισμός]-Table1[Πραγματικά])","v":0},{"$f":"IFERROR(SUM(Table1[Διαφορά (€)]/Table1[Προϋπολογισμός]),\"\")","v":""}]
[]
[null,"Λειτουργία","Προϋπολογισμός","Πραγματικά","Διαφορά (€)","Διαφορά (%)"]
[null,"Διαφήμιση",null,null,{"$f":"SUM(Table2[Προϋπολογισμός]-Table2[Πραγματικά])","v":0},{"$f":"IFERROR(SUM(Table2[Διαφορά (€)]/Table2[Προϋπολογισμός]),\"\")","v":""}]
[null,"Οφειλές",null,null,{"$f":"SUM(Table2[Προϋπολογισμός]-Table2[Πραγματικά])","v":0},{"$f":"IFERROR(SUM(Table2[Διαφορά (€)]/Table2[Προϋπολογισμός]),\"\")","v":""}]
[null,"Παροχές",null,null,{"$f":"SUM(Table2[Προϋπολογισμός]-Table2[Πραγματικά])","v":0},{"$f":"IFERROR(SUM(Table2[Διαφορά (€)]/Table2[Προϋπολογισμός]),\"\")","v":""}]
[null,"Αναλώσιμα",null,null,{"$f":"SUM(Table2[Προϋπολογισμός]-Table2[Πραγματικά])","v":0},{"$f":"IFERROR(SUM(Table2[Διαφορά (€)]/Table2[Προϋπολογισμός]),\"\")","v":""}]
[null,"Ταχυδρομικά τέλη",null,null,{"$f":"SUM(Table2[Προϋπολογισμός]-Table2[Πραγματικά])","v":0},{"$f":"IFERROR(SUM(Table2[Διαφορά (€)]/Table2[Προϋπολογισμός]),\"\")","v":""}]
[null,"Δόση δανείου ή ενοίκιο",null,null,{"$f":"SUM(Table2[Προϋπολογισμός]-Table2[Πραγματικά])","v":0},{"$f":"IFERROR(SUM(Table2[Διαφορά (€)]/Table2[Προϋπολογισμός]),\"\")","v":""}]
[null,"Έξοδα πωλήσεων",null,null,{"$f":"SUM(Table2[Προϋπολογισμός]-Table2[Πραγματικά])","v":0},{"$f":"IFERROR(SUM(Table2[Διαφορά (€)]/Table2[Προϋπολογισμός]),\"\")","v":""}]
[null,"Φόροι",null,null,{"$f":"SUM(Table2[Προϋπολογισμός]-Table2[Πραγματικά])","v":0},{"$f":"IFERROR(SUM(Table2[Διαφορά (€)]/Table2[Προϋπολογισμός]),\"\")","v":""}]
[null,"Υπηρεσίες κοινής ωφέλειας",null,null,{"$f":"SUM(Table2[Προϋπολογισμός]-Table2[Πραγματικά])","v":0},{"$f":"IFERROR(SUM(Table2[Διαφορά (€)]/Table2[Προϋπολογισμός]),\"\")","v":""}]
[null,"Άλλο",null,null,{"$f":"SUM(Table2[Προϋπολογισμός]-Table2[Πραγματικά])","v":0},{"$f":"IFERROR(SUM(Table2[Διαφορά (€)]/Table2[Προϋπολογισμός]),\"\")","v":""}]
[null,"Ασφάλιση",null,null,{"$f":"SUM(Table2[Προϋπολογισμός]-Table2[Πραγματικά])","v":0},{"$f":"IFERROR(SUM(Table2[Διαφορά (€)]/Table2[Προϋπολογισμός]),\"\")","v":""}]
[null,"Τόκος",null,null,{"$f":"SUM(Table2[Προϋπολογισμός]-Table2[Πραγματικά])","v":0},{"$f":"IFERROR(SUM(Table2[Διαφορά (€)]/Table2[Προϋπολογισμός]),\"\")","v":""}]
[null,"Τηλέφωνο",null,null,{"$f":"SUM(Table2[Προϋπολογισμός]-Table2[Πραγματικά])","v":0},{"$f":"IFERROR(SUM(Table2[Διαφορά (€)]/Table2[Προϋπολογισμός]),\"\")","v":""}]
[null,"Συντήρηση και επισκευές",null,null,{"$f":"SUM(Table2[Προϋπολογισμός]-Table2[Πραγματικά])","v":0},{"$f":"IFERROR(SUM(Table2[Διαφορά (€)]/Table2[Προϋπολογισμός]),\"\")","v":""}]
[null,"Νομικά έξοδα",null,null,{"$f":"SUM(Table2[Προϋπολογισμός]-Table2[Πραγματικά])","v":0},{"$f":"IFERROR(SUM(Table2[Διαφορά (€)]/Table2[Προϋπολογισμός]),\"\")","v":""}]
[null,"Απόσβεση",null,null,{"$f":"SUM(Table2[Προϋπολογισμός]-Table2[Πραγματικά])","v":0},{"$f":"IFERROR(SUM(Table2[Διαφορά (€)]/Table2[Προϋπολογισμός]),\"\")","v":""}]
[null,"Μεταφορά",null,null,{"$f":"SUM(Table2[Προϋπολογισμός]-Table2[Πραγματικά])","v":0},{"$f":"IFERROR(SUM(Table2[Διαφορά (€)]/Table2[Προϋπολογισμός]),\"\")","v":""}]
[null,"Αποθήκευση",null,null,{"$f":"SUM(Table2[Προϋπολογισμός]-Table2[Πραγματικά])","v":0},{"$f":"IFERROR(SUM(Table2[Διαφορά (€)]/Table2[Προϋπολογισμός]),\"\")","v":""}]
[null,"Άλλο",null,null,{"$f":"SUM(Table2[Προϋπολογισμός]-Table2[Πραγματικά])","v":0},{"$f":"IFERROR(SUM(Table2[Διαφορά (€)]/Table2[Προϋπολογισμός]),\"\")","v":""}]
[null,"Συνολικά έξοδα",{"$f":"SUM(Table1[Προϋπολογισμός],Table2[Προϋπολογισμός])","v":0},{"$f":"SUM(Table1[Πραγματικά],Table2[Πραγματικά])","v":0},{"$f":"SUM(Table1[Διαφορά (€)],Table2[Διαφορά (€)])","v":0},{"$f":"IFERROR(SUM(Table2[[#Totals],[Διαφορά (€)]]/Table2[[#Totals],[Προϋπολογισμός]]),\"\")","v":""}]